[Event "*** Titled Tuesday Blitz"]
[Site "Chess.com"]
[Date "2020.05.26"]
[Round "7"]
[White "Richarzard69"]
[Black "maximnovik"]
[Result "1-0"]
[WhiteElo "2264"]
[BlackElo "2432"]
[TimeControl "180+1"]
[EndTime "11:21:56 PDT"]
[Termination "Richarzard69 won by checkmate"]

1. Nf3 {[%clk 0:03:00.9]} 1... Nf6 {[%clk 0:02:58.9]} 2. c4 {[%clk 0:03:01]}
2... g6 {[%clk 0:02:59]} 3. Nc3 {[%clk 0:03:01.1]} 3... d5 {[%clk 0:02:58.6]} 4.
cxd5 {[%clk 0:03:02]} 4... Nxd5 {[%clk 0:02:58.3]} 5. e4 {[%clk 0:03:02.6]} 5...
Nb4 {[%clk 0:02:58.1]} 6. d4 {[%clk 0:03:00.9]} 6... Bg7 {[%clk 0:02:57.2]} 7.
a3 {[%clk 0:02:54.8]} 7... N4c6 {[%clk 0:02:56.7]} 8. d5 {[%clk 0:02:54.7]} 8...
Ne5 {[%clk 0:02:56.8]} 9. Nxe5 {[%clk 0:02:50.4]} 9... Bxe5 {[%clk 0:02:55.9]}
10. f4 {[%clk 0:02:50.9]} 10... Bg7 {[%clk 0:02:55.2]} 11. Be2 {[%clk
0:02:41.6]} 11... c6 {[%clk 0:02:54.7]} 12. O-O {[%clk 0:02:29.8]} 12... cxd5
{[%clk 0:02:54.5]} 13. Nxd5 {[%clk 0:02:27.9]} 13... Be6 {[%clk 0:02:42]} 14.
Qa4+ {[%clk 0:02:13.9]} 14... Nc6 {[%clk 0:02:40.5]} 15. Rd1 {[%clk 0:02:08]}
15... O-O {[%clk 0:02:04.5]} 16. Nf6+ {[%clk 0:01:56.4]} 16... exf6 {[%clk
0:02:03.6]} 17. Rxd8 {[%clk 0:01:56.9]} 17... Raxd8 {[%clk 0:02:03.8]} 18. Be3
{[%clk 0:01:56.3]} 18... f5 {[%clk 0:01:55.5]} 19. e5 {[%clk 0:01:53.7]} 19...
f6 {[%clk 0:01:39.2]} 20. Bc4 {[%clk 0:01:52.4]} 20... Bxc4 {[%clk 0:01:38.2]}
21. Qxc4+ {[%clk 0:01:52]} 21... Kh8 {[%clk 0:01:38.7]} 22. e6 {[%clk
0:01:49.9]} 22... Rfe8 {[%clk 0:01:38.3]} 23. Re1 {[%clk 0:01:39.3]} 23... Bf8
{[%clk 0:01:30.2]} 24. Bc5 {[%clk 0:01:26]} 24... Bxc5+ {[%clk 0:01:18.3]} 25.
Qxc5 {[%clk 0:01:26.9]} 25... Re7 {[%clk 0:01:17.8]} 26. b4 {[%clk 0:01:10.5]}
26... a6 {[%clk 0:01:15.8]} 27. a4 {[%clk 0:01:06.3]} 27... Rde8 {[%clk
0:01:14.9]} 28. b5 {[%clk 0:01:02]} 28... axb5 {[%clk 0:01:15]} 29. axb5 {[%clk
0:01:01.9]} 29... Nd8 {[%clk 0:01:15.1]} 30. Qd5 {[%clk 0:00:43]} 30... Nxe6
{[%clk 0:01:13.4]} 31. b6 {[%clk 0:00:33.5]} 31... Kg7 {[%clk 0:01:06.8]} 32.
Kf2 {[%clk 0:00:29.3]} 32... Nxf4 {[%clk 0:00:36.1]} 33. Rxe7+ {[%clk
0:00:27.3]} 33... Rxe7 {[%clk 0:00:36.2]} 34. Qd6 {[%clk 0:00:25.2]} 34... Re2+
{[%clk 0:00:25.6]} 35. Kf1 {[%clk 0:00:18.9]} 35... Re4 {[%clk 0:00:24.5]} 36.
Qc7+ {[%clk 0:00:17.2]} 36... Kh6 {[%clk 0:00:24.5]} 37. Qxb7 {[%clk 0:00:17.7]}
37... Nd3 {[%clk 0:00:23.8]} 38. Qxe4 {[%clk 0:00:15]} 38... fxe4 {[%clk
0:00:21.9]} 39. b7 {[%clk 0:00:15.1]} 39... f5 {[%clk 0:00:17.3]} 40. b8=Q
{[%clk 0:00:16]} 40... Kg7 {[%clk 0:00:15.9]} 41. Qc7+ {[%clk 0:00:15.9]} 41...
Kh6 {[%clk 0:00:16]} 42. Qd6 {[%clk 0:00:16.7]} 42... Kg7 {[%clk 0:00:15.2]} 43.
Qe7+ {[%clk 0:00:17]} 43... Kh6 {[%clk 0:00:15.2]} 44. Qf8+ {[%clk 0:00:16.9]}
44... Kg5 {[%clk 0:00:14.8]} 45. Qg7 {[%clk 0:00:17.1]} 45... h5 {[%clk
0:00:14.2]} 46. g3 {[%clk 0:00:16.5]} 46... f4 {[%clk 0:00:10.8]} 47. Qe7+
{[%clk 0:00:12.6]} 47... Kf5 {[%clk 0:00:09]} 48. Qf7+ {[%clk 0:00:11.5]} 48...
Kg5 {[%clk 0:00:08.6]} 49. Qd5+ {[%clk 0:00:11.3]} 49... Kg4 {[%clk 0:00:04.1]}
50. Qxe4 {[%clk 0:00:10.2]} 50... Nc5 {[%clk 0:00:01.7]} 51. Qxf4+ {[%clk
0:00:09.7]} 51... Kh3 {[%clk 0:00:02]} 52. Qh4# {[%clk 0:00:09.8]} 1-0

[Event "*** Titled Tuesday Blitz"]
[Site "Chess.com"]
[Date "2020.05.26"]
[Round "7"]
[White "WiktoriaPOL"]
[Black "DonPreuss"]
[Result "0-1"]
[WhiteElo "1999"]
[BlackElo "2228"]
[TimeControl "180+1"]
[EndTime "11:21:56 PDT"]
[Termination "DonPreuss won on time"]

1. c4 {[%clk 0:03:00.9]} 1... Nc6 {[%clk 0:03:00]} 2. d4 {[%clk 0:02:59.6]} 2...
e5 {[%clk 0:03:00.2]} 3. d5 {[%clk 0:02:59.3]} 3... Nce7 {[%clk 0:03:00.6]} 4.
e4 {[%clk 0:02:58]} 4... Ng6 {[%clk 0:03:01.1]} 5. Nf3 {[%clk 0:02:56.8]} 5...
Bc5 {[%clk 0:03:01.6]} 6. Nc3 {[%clk 0:02:55]} 6... a6 {[%clk 0:03:02.1]} 7. a3
{[%clk 0:02:54.3]} 7... d6 {[%clk 0:03:02.6]} 8. b4 {[%clk 0:02:53.6]} 8... Ba7
{[%clk 0:03:02.5]} 9. Be2 {[%clk 0:02:53.2]} 9... N8e7 {[%clk 0:03:02.7]} 10.
O-O {[%clk 0:02:52.6]} 10... O-O {[%clk 0:03:03.2]} 11. Be3 {[%clk 0:02:50.6]}
11... Bxe3 {[%clk 0:03:02]} 12. fxe3 {[%clk 0:02:50]} 12... f5 {[%clk
0:03:02.9]} 13. exf5 {[%clk 0:02:37.3]} 13... Nxf5 {[%clk 0:03:03.8]} 14. Qd2
{[%clk 0:02:35.4]} 14... Bd7 {[%clk 0:02:46.1]} 15. e4 {[%clk 0:02:31.8]} 15...
Nfh4 {[%clk 0:02:42.4]} 16. c5 {[%clk 0:02:14.9]} 16... Nxf3+ {[%clk 0:02:12.6]}
17. Bxf3 {[%clk 0:02:13.7]} 17... Nf4 {[%clk 0:02:12.8]} 18. cxd6 {[%clk
0:02:05.1]} 18... Qg5 {[%clk 0:02:08.9]} 19. Kh1 {[%clk 0:01:49.4]} 19... cxd6
{[%clk 0:02:06.1]} 20. g3 {[%clk 0:01:48.2]} 20... Nh3 {[%clk 0:02:01.5]} 21.
Qxg5 {[%clk 0:01:47.5]} 21... Nxg5 {[%clk 0:02:00.9]} 22. Bg2 {[%clk 0:01:40.2]}
22... Bh3 {[%clk 0:01:59.2]} 23. Bxh3 {[%clk 0:01:37.4]} 23... Nxh3 {[%clk
0:01:59]} 24. Kg2 {[%clk 0:01:37.1]} 24... Ng5 {[%clk 0:01:57.1]} 25. h4 {[%clk
0:01:36.9]} 25... Rxf1 {[%clk 0:01:42.8]} 26. Rxf1 {[%clk 0:01:34.7]} 26... Rc8
{[%clk 0:01:42.1]} 27. hxg5 {[%clk 0:01:01.5]} 27... Rxc3 {[%clk 0:01:41.3]} 28.
Rf3 {[%clk 0:00:56.1]} 28... Rc4 {[%clk 0:01:39.7]} 29. Re3 {[%clk 0:00:55.4]}
29... Kf7 {[%clk 0:01:40]} 30. Kf3 {[%clk 0:00:51.5]} 30... Kg6 {[%clk 0:01:40]}
31. Kg4 {[%clk 0:00:51.2]} 31... b6 {[%clk 0:01:04]} 32. Kh4 {[%clk 0:00:49.4]}
32... Rc1 {[%clk 0:00:49.5]} 33. Kg4 {[%clk 0:00:41.2]} 33... a5 {[%clk
0:00:36.6]} 34. bxa5 {[%clk 0:00:37.9]} 34... bxa5 {[%clk 0:00:36.9]} 35. Kh4
{[%clk 0:00:20.9]} 35... a4 {[%clk 0:00:36.3]} 36. Kg4 {[%clk 0:00:20.5]} 36...
Rb1 {[%clk 0:00:36.2]} 37. Rc3 {[%clk 0:00:11]} 37... Rb3 {[%clk 0:00:29.9]} 38.
Rc6 {[%clk 0:00:10.7]} 38... Rxa3 {[%clk 0:00:29.9]} 39. Rxd6+ {[%clk
0:00:10.8]} 39... Kf7 {[%clk 0:00:28.9]} 40. Ra6 {[%clk 0:00:10.2]} 40... g6
{[%clk 0:00:28.4]} 41. Rf6+ {[%clk 0:00:06.4]} 41... Ke7 {[%clk 0:00:28.2]} 42.
Ra6 {[%clk 0:00:06.2]} 42... Kf7 {[%clk 0:00:24.9]} 43. Ra7+ {[%clk 0:00:02.7]}
43... Kf8 {[%clk 0:00:24.5]} 44. Ra8+ {[%clk 0:00:02.9]} 44... Ke7 {[%clk
0:00:24.3]} 45. Ra7+ {[%clk 0:00:03.1]} 45... Kd6 {[%clk 0:00:24.7]} 46. Ra6+
{[%clk 0:00:02.5]} 46... Kc5 {[%clk 0:00:25]} 47. Rc6+ {[%clk 0:00:02.5]} 47...
Kb5 {[%clk 0:00:24.2]} 48. Rc7 {[%clk 0:00:01.8]} 48... Rd3 {[%clk 0:00:23.5]}
49. Ra7 {[%clk 0:00:01.3]} 49... Re3 {[%clk 0:00:20.9]} 50. d6 {[%clk
0:00:01.5]} 50... Rxe4+ {[%clk 0:00:21.1]} 51. Kf3 {[%clk 0:00:01.6]} 51... Rd4
{[%clk 0:00:21.6]} 52. d7 {[%clk 0:00:01.9]} 52... Kb4 {[%clk 0:00:18.4]} 53.
Rb7+ {[%clk 0:00:01.5]} 53... Kc3 {[%clk 0:00:18.1]} 54. Ra7 {[%clk 0:00:01.8]}
54... Kb2 {[%clk 0:00:16.9]} 55. Ke3 {[%clk 0:00:02.1]} 55... a3 {[%clk
0:00:16.7]} 0-1

[Event "*** Titled Tuesday Blitz"]
[Site "Chess.com"]
[Date "2020.05.26"]
[Round "7"]
[White "tylityli"]
[Black "andy_rekt"]
[Result "1-0"]
[WhiteElo "2304"]
[BlackElo "2159"]
[TimeControl "180+1"]
[EndTime "11:21:58 PDT"]
[Termination "tylityli won by checkmate"]

1. d4 {[%clk 0:02:57.2]} 1... e6 {[%clk 0:02:59.3]} 2. c4 {[%clk 0:02:57.6]}
2... Nf6 {[%clk 0:02:58.1]} 3. Nc3 {[%clk 0:02:57.5]} 3... Bb4 {[%clk
0:02:55.7]} 4. e3 {[%clk 0:02:57.6]} 4... O-O {[%clk 0:02:54.8]} 5. Ne2 {[%clk
0:02:58.5]} 5... d5 {[%clk 0:02:51.7]} 6. cxd5 {[%clk 0:02:53.9]} 6... exd5
{[%clk 0:02:51.1]} 7. a3 {[%clk 0:02:54.1]} 7... Bd6 {[%clk 0:02:48.9]} 8. g3
{[%clk 0:02:51.9]} 8... c6 {[%clk 0:02:46.5]} 9. Bg2 {[%clk 0:02:52]} 9... Re8
{[%clk 0:02:45.2]} 10. O-O {[%clk 0:02:51.7]} 10... Nbd7 {[%clk 0:02:45]} 11. f3
{[%clk 0:02:51.3]} 11... Nf8 {[%clk 0:02:41.5]} 12. Qd3 {[%clk 0:02:50]} 12...
g6 {[%clk 0:02:30.8]} 13. e4 {[%clk 0:02:48.7]} 13... dxe4 {[%clk 0:02:22.9]}
14. fxe4 {[%clk 0:02:48]} 14... Nh5 {[%clk 0:02:06.6]} 15. Nf4 {[%clk
0:02:24.2]} 15... Nxf4 {[%clk 0:02:03.3]} 16. Bxf4 {[%clk 0:02:19]} 16... Bc5
{[%clk 0:01:57.9]} 17. Rad1 {[%clk 0:02:13.5]} 17... Ne6 {[%clk 0:01:52.2]} 18.
dxc5 {[%clk 0:02:07.1]} 18... Qxd3 {[%clk 0:01:47.8]} 19. Rxd3 {[%clk
0:02:06.3]} 19... Nxc5 {[%clk 0:01:48.4]} 20. Rdd1 {[%clk 0:02:02.8]} 20... Bg4
{[%clk 0:01:46.7]} 21. Rd2 {[%clk 0:01:54.3]} 21... Nb3 {[%clk 0:01:41.9]} 22.
Rc2 {[%clk 0:01:47.5]} 22... Nd4 {[%clk 0:01:38.5]} 23. Rcf2 {[%clk 0:01:43.8]}
23... f6 {[%clk 0:01:34]} 24. h3 {[%clk 0:01:41.2]} 24... Be6 {[%clk 0:01:30.7]}
25. Rd1 {[%clk 0:01:36.5]} 25... c5 {[%clk 0:01:28.6]} 26. e5 {[%clk 0:01:35.1]}
26... Bb3 {[%clk 0:01:22.9]} 27. Re1 {[%clk 0:01:30]} 27... g5 {[%clk
0:01:14.3]} 28. Bc1 {[%clk 0:01:23]} 28... fxe5 {[%clk 0:00:56.5]} 29. Bxg5
{[%clk 0:01:21.5]} 29... Rab8 {[%clk 0:00:53.8]} 30. Bd5+ {[%clk 0:01:17.1]}
30... Bxd5 {[%clk 0:00:46.8]} 31. Nxd5 {[%clk 0:01:18]} 31... Rf8 {[%clk
0:00:29.2]} 32. Ne7+ {[%clk 0:01:14.7]} 32... Kg7 {[%clk 0:00:28.6]} 33. Ref1
{[%clk 0:01:06]} 33... Rxf2 {[%clk 0:00:24.4]} 34. Rxf2 {[%clk 0:01:04.1]} 34...
Re8 {[%clk 0:00:18.4]} 35. Nf5+ {[%clk 0:00:58]} 35... Nxf5 {[%clk 0:00:17.5]}
36. Rxf5 {[%clk 0:00:57.7]} 36... Kg6 {[%clk 0:00:18]} 37. g4 {[%clk 0:00:57.7]}
37... b6 {[%clk 0:00:16.6]} 38. Kf2 {[%clk 0:00:55.3]} 38... e4 {[%clk
0:00:16.7]} 39. Be3 {[%clk 0:00:54.8]} 39... Rd8 {[%clk 0:00:13.7]} 40. Ke2
{[%clk 0:00:54.1]} 40... Rd3 {[%clk 0:00:13.1]} 41. Re5 {[%clk 0:00:51.6]} 41...
Rb3 {[%clk 0:00:13.2]} 42. Rxe4 {[%clk 0:00:49.3]} 42... Rxb2+ {[%clk
0:00:13.5]} 43. Kf3 {[%clk 0:00:49.6]} 43... Rb3 {[%clk 0:00:13.5]} 44. a4
{[%clk 0:00:46.9]} 44... a6 {[%clk 0:00:11.4]} 45. h4 {[%clk 0:00:45.6]} 45...
b5 {[%clk 0:00:11]} 46. axb5 {[%clk 0:00:45.2]} 46... axb5 {[%clk 0:00:10.8]}
47. Kf4 {[%clk 0:00:44.4]} 47... c4 {[%clk 0:00:10.6]} 48. h5+ {[%clk
0:00:43.3]} 48... Kf7 {[%clk 0:00:10.4]} 49. Bd4 {[%clk 0:00:38.2]} 49... Rd3
{[%clk 0:00:09.4]} 50. g5 {[%clk 0:00:33.3]} 50... b4 {[%clk 0:00:09.5]} 51. Bf6
{[%clk 0:00:31.9]} 51... b3 {[%clk 0:00:08.8]} 52. Re7+ {[%clk 0:00:31.4]} 52...
Kg8 {[%clk 0:00:08.9]} 53. Rb7 {[%clk 0:00:29.5]} 53... Rd2 {[%clk 0:00:06.7]}
54. Rb8+ {[%clk 0:00:26.6]} 54... Kf7 {[%clk 0:00:05.6]} 55. Rb7+ {[%clk
0:00:26.4]} 55... Kg8 {[%clk 0:00:05.4]} 56. Ke3 {[%clk 0:00:27]} 56... Rd3+
{[%clk 0:00:05.2]} 57. Ke4 {[%clk 0:00:26.9]} 57... Rh3 {[%clk 0:00:04.8]} 58.
g6 {[%clk 0:00:26.4]} 58... Rxh5 {[%clk 0:00:02.9]} 59. Rb8# {[%clk 0:00:24.8]}
1-0

[Event "*** Titled Tuesday Blitz"]
[Site "Chess.com"]
[Date "2020.05.26"]
[Round "7"]
[White "ElGasanov"]
[Black "hitaman"]
[Result "0-1"]
[WhiteElo "2737"]
[BlackElo "2630"]
[TimeControl "180+1"]
[EndTime "11:22:01 PDT"]
[Termination "hitaman won by resignation"]

1. d4 {[%clk 0:03:00.9]} 1... d5 {[%clk 0:02:59.4]} 2. c4 {[%clk 0:03:00.3]}
2... c6 {[%clk 0:02:59.7]} 3. Nf3 {[%clk 0:03:00.3]} 3... Nf6 {[%clk 0:02:59.6]}
4. Qb3 {[%clk 0:02:57.6]} 4... g6 {[%clk 0:02:54.7]} 5. cxd5 {[%clk 0:02:51.8]}
5... cxd5 {[%clk 0:02:54.1]} 6. Nc3 {[%clk 0:02:52.4]} 6... Bg7 {[%clk
0:02:50.7]} 7. Bg5 {[%clk 0:02:52.8]} 7... O-O {[%clk 0:02:32.9]} 8. e3 {[%clk
0:02:52.8]} 8... e6 {[%clk 0:02:16]} 9. Be2 {[%clk 0:02:47.5]} 9... Nc6 {[%clk
0:02:14.8]} 10. O-O {[%clk 0:02:47.6]} 10... h6 {[%clk 0:02:12]} 11. Bh4 {[%clk
0:02:42]} 11... g5 {[%clk 0:01:59.8]} 12. Bg3 {[%clk 0:02:42.5]} 12... Nh5
{[%clk 0:02:00.1]} 13. Qa3 {[%clk 0:02:39.7]} 13... Nxg3 {[%clk 0:01:55.9]} 14.
hxg3 {[%clk 0:02:40.3]} 14... g4 {[%clk 0:01:49.1]} 15. Ne1 {[%clk 0:02:32.7]}
15... h5 {[%clk 0:01:49.1]} 16. Nd3 {[%clk 0:02:32.5]} 16... Qg5 {[%clk
0:01:44.5]} 17. Nf4 {[%clk 0:02:22.7]} 17... Bd7 {[%clk 0:01:37.6]} 18. Rac1
{[%clk 0:02:16.5]} 18... Rfc8 {[%clk 0:01:35.9]} 19. Nb5 {[%clk 0:02:06.8]}
19... Bf8 {[%clk 0:01:32.6]} 20. Qb3 {[%clk 0:02:01.8]} 20... Rab8 {[%clk
0:01:21.5]} 21. a3 {[%clk 0:01:47.1]} 21... a6 {[%clk 0:01:21.3]} 22. Nc3 {[%clk
0:01:46.3]} 22... Ne7 {[%clk 0:01:21.9]} 23. Na4 {[%clk 0:01:43.3]} 23... Nf5
{[%clk 0:00:46.7]} 24. Rxc8 {[%clk 0:01:34.2]} 24... Bxc8 {[%clk 0:00:46.5]} 25.
Nb6 {[%clk 0:01:24.4]} 25... h4 {[%clk 0:00:41.9]} 26. gxh4 {[%clk 0:01:16.3]}
26... Qxh4 {[%clk 0:00:42.8]} 27. g3 {[%clk 0:01:11.9]} 27... Nxg3 {[%clk
0:00:43]} 28. fxg3 {[%clk 0:01:09.8]} 28... Qxg3+ {[%clk 0:00:43.9]} 29. Ng2
{[%clk 0:01:09.7]} 29... Bd6 {[%clk 0:00:43.7]} 30. Bxg4 {[%clk 0:00:36.2]}
30... Qh2+ {[%clk 0:00:43.4]} 31. Kf2 {[%clk 0:00:36]} 31... Qg3+ {[%clk
0:00:44.3]} 32. Kg1 {[%clk 0:00:34.3]} 32... Qxg4 {[%clk 0:00:45.2]} 33. Nxc8
{[%clk 0:00:29.1]} 33... Rxc8 {[%clk 0:00:46.1]} 34. Qxb7 {[%clk 0:00:29.3]}
34... Rc7 {[%clk 0:00:37.4]} 35. Qb8+ {[%clk 0:00:24.9]} 35... Kg7 {[%clk
0:00:37]} 36. Qd8 {[%clk 0:00:24.6]} 36... Rc2 {[%clk 0:00:34.4]} 37. Qf6+
{[%clk 0:00:23.7]} 37... Kh7 {[%clk 0:00:28.8]} 38. Qxf7+ {[%clk 0:00:24.2]}
38... Qg7 {[%clk 0:00:15.3]} 39. Qh5+ {[%clk 0:00:22.1]} 39... Kg8 {[%clk
0:00:15.8]} 40. Qe8+ {[%clk 0:00:21.1]} 40... Kh7 {[%clk 0:00:16.3]} 41. Qh5+
{[%clk 0:00:19]} 41... Kg8 {[%clk 0:00:16.1]} 42. Qh3 {[%clk 0:00:18.6]} 42...
Qg6 {[%clk 0:00:13]} 43. Kh1 {[%clk 0:00:17]} 43... Kg7 {[%clk 0:00:10]} 44. Rg1
{[%clk 0:00:13.8]} 44... Qe4 {[%clk 0:00:10.6]} 45. Rf1 {[%clk 0:00:09.6]} 45...
Rxb2 {[%clk 0:00:08.4]} 46. Rg1 {[%clk 0:00:10]} 46... Rc2 {[%clk 0:00:08.3]}
47. Qh5 {[%clk 0:00:09.5]} 47... Be7 {[%clk 0:00:07]} 48. Qh3 {[%clk 0:00:08.4]}
48... Rb2 {[%clk 0:00:04.6]} 49. Kh2 {[%clk 0:00:08.6]} 49... Bd6+ {[%clk
0:00:04.3]} 50. Kh1 {[%clk 0:00:09.2]} 50... Rb1 {[%clk 0:00:04.7]} 51. Qh5
{[%clk 0:00:03.6]} 51... Rxg1+ {[%clk 0:00:04]} 52. Kxg1 {[%clk 0:00:04.3]}
52... Qg6 {[%clk 0:00:04.8]} 53. Kh1 {[%clk 0:00:04.3]} 53... Qxh5+ {[%clk
0:00:04.8]} 0-1

[Event "*** Titled Tuesday Blitz"]
[Site "Chess.com"]
[Date "2020.05.26"]
[Round "7"]
[White "I_Hit_18K_on_BS"]
[Black "MMKZH22"]
[Result "0-1"]
[WhiteElo "2074"]
[BlackElo "2287"]
[TimeControl "180+1"]
[EndTime "11:22:01 PDT"]
[Termination "MMKZH22 won by resignation"]

1. e4 {[%clk 0:03:00.9]} 1... c5 {[%clk 0:02:59.6]} 2. Nf3 {[%clk 0:03:00.1]}
2... Nc6 {[%clk 0:02:59.4]} 3. d4 {[%clk 0:03:00.4]} 3... cxd4 {[%clk
0:02:59.6]} 4. Nxd4 {[%clk 0:03:01.1]} 4... g6 {[%clk 0:02:59.8]} 5. c4 {[%clk
0:02:59.6]} 5... Bg7 {[%clk 0:02:58.6]} 6. Be3 {[%clk 0:02:59]} 6... Nf6 {[%clk
0:02:58.9]} 7. Nc3 {[%clk 0:02:58.1]} 7... O-O {[%clk 0:02:52.2]} 8. Qd2 {[%clk
0:02:48.9]} 8... d6 {[%clk 0:02:49.2]} 9. f3 {[%clk 0:02:47.2]} 9... Bd7 {[%clk
0:02:46.7]} 10. Be2 {[%clk 0:02:39.9]} 10... Rc8 {[%clk 0:02:43.8]} 11. O-O
{[%clk 0:02:37.9]} 11... Nxd4 {[%clk 0:02:37.3]} 12. Bxd4 {[%clk 0:02:33.2]}
12... Bc6 {[%clk 0:02:37.7]} 13. Nd5 {[%clk 0:02:26.9]} 13... Bxd5 {[%clk
0:02:33.4]} 14. cxd5 {[%clk 0:02:23.4]} 14... Nd7 {[%clk 0:02:33.2]} 15. f4
{[%clk 0:02:15.4]} 15... Bxd4+ {[%clk 0:02:31.5]} 16. Qxd4 {[%clk 0:02:16.3]}
16... Qb6 {[%clk 0:02:32]} 17. Qxb6 {[%clk 0:02:13.5]} 17... Nxb6 {[%clk
0:02:31.6]} 18. Rac1 {[%clk 0:02:13]} 18... f5 {[%clk 0:01:51.2]} 19. exf5
{[%clk 0:02:09]} 19... gxf5 {[%clk 0:01:51.4]} 20. Bd3 {[%clk 0:01:55.8]} 20...
Rxc1 {[%clk 0:01:12.6]} 21. Rxc1 {[%clk 0:01:52.5]} 21... Nxd5 {[%clk
0:01:09.2]} 22. Bc4 {[%clk 0:01:51.5]} 22... e6 {[%clk 0:01:08.2]} 23. Bxd5
{[%clk 0:01:50.7]} 23... exd5 {[%clk 0:01:08.5]} 24. Rd1 {[%clk 0:01:51.1]}
24... Kf7 {[%clk 0:01:08.2]} 25. Rxd5 {[%clk 0:01:49.8]} 25... Ke6 {[%clk
0:01:08.6]} 26. Rb5 {[%clk 0:01:49.4]} 26... Rf7 {[%clk 0:01:04.3]} 27. Kf2
{[%clk 0:01:44.6]} 27... Rc7 {[%clk 0:01:03.9]} 28. h4 {[%clk 0:01:37.9]} 28...
h5 {[%clk 0:01:02]} 29. g3 {[%clk 0:01:35.3]} 29... b6 {[%clk 0:01:01.3]} 30. a4
{[%clk 0:01:32.2]} 30... Rc5 {[%clk 0:01:00.7]} 31. Rb4 {[%clk 0:01:17.4]} 31...
Kd5 {[%clk 0:00:43.8]} 32. Ke3 {[%clk 0:01:04.3]} 32... Rc4 {[%clk 0:00:39.6]}
33. Rb5+ {[%clk 0:01:04.3]} 33... Ke6 {[%clk 0:00:32.4]} 34. a5 {[%clk
0:00:59.3]} 34... Rc5 {[%clk 0:00:28]} 35. Rxc5 {[%clk 0:00:54.1]} 35... dxc5
{[%clk 0:00:23.5]} 36. axb6 {[%clk 0:00:51.2]} 36... axb6 {[%clk 0:00:23.2]} 37.
b3 {[%clk 0:00:46.6]} 37... Kd5 {[%clk 0:00:22.9]} 38. Kd3 {[%clk 0:00:45.8]}
38... b5 {[%clk 0:00:22.4]} 39. Ke2 {[%clk 0:00:35]} 39... Ke4 {[%clk
0:00:20.9]} 40. Kf2 {[%clk 0:00:34.2]} 40... c4 {[%clk 0:00:19.2]} 41. bxc4
{[%clk 0:00:33.1]} 41... bxc4 {[%clk 0:00:19.5]} 42. Ke2 {[%clk 0:00:30.5]}
42... c3 {[%clk 0:00:19.7]} 43. Kd1 {[%clk 0:00:26.4]} 43... Kd3 {[%clk
0:00:16.3]} 44. g4 {[%clk 0:00:23.6]} 44... fxg4 {[%clk 0:00:15.3]} 45. f5
{[%clk 0:00:23.2]} 45... g3 {[%clk 0:00:15.7]} 46. Ke1 {[%clk 0:00:23.2]} 46...
c2 {[%clk 0:00:14.4]} 47. Kf1 {[%clk 0:00:23.6]} 47... c1=Q+ {[%clk 0:00:14.1]}
48. Kg2 {[%clk 0:00:24.5]} 48... Qd2+ {[%clk 0:00:11.8]} 49. Kxg3 {[%clk
0:00:24.2]} 49... Qe3+ {[%clk 0:00:11.9]} 50. Kg2 {[%clk 0:00:23]} 50... Qf4
{[%clk 0:00:10.3]} 51. f6 {[%clk 0:00:21.6]} 51... Qxf6 {[%clk 0:00:10.2]} 52.
Kg3 {[%clk 0:00:20.6]} 52... Ke3 {[%clk 0:00:10.1]} 53. Kg2 {[%clk 0:00:19.6]}
53... Qf3+ {[%clk 0:00:10.1]} 54. Kg1 {[%clk 0:00:16.8]} 54... Qe2 {[%clk
0:00:05.5]} 55. Kh1 {[%clk 0:00:15.5]} 55... Kf3 {[%clk 0:00:05.3]} 0-1

[Event "*** Titled Tuesday Blitz"]
[Site "Chess.com"]
[Date "2020.05.26"]
[Round "7"]
[White "chesslh19"]
[Black "AttilaTurzo"]
[Result "0-1"]
[WhiteElo "2162"]
[BlackElo "2435"]
[TimeControl "180+1"]
[EndTime "11:22:04 PDT"]
[Termination "AttilaTurzo won by resignation"]

1. e4 {[%clk 0:03:00.9]} 1... c5 {[%clk 0:02:57.7]} 2. Nf3 {[%clk 0:02:53.2]}
2... d6 {[%clk 0:02:58]} 3. d4 {[%clk 0:02:48.3]} 3... cxd4 {[%clk 0:02:58.9]}
4. Nxd4 {[%clk 0:02:48.9]} 4... Nf6 {[%clk 0:02:59.8]} 5. Nc3 {[%clk 0:02:49.2]}
5... a6 {[%clk 0:03:00.3]} 6. Be2 {[%clk 0:02:49]} 6... e5 {[%clk 0:02:59.9]} 7.
Nb3 {[%clk 0:02:49.4]} 7... Be7 {[%clk 0:03:00.1]} 8. O-O {[%clk 0:02:48.3]}
8... O-O {[%clk 0:03:00.6]} 9. Be3 {[%clk 0:02:48.2]} 9... Be6 {[%clk
0:03:00.6]} 10. a4 {[%clk 0:02:45.6]} 10... Nbd7 {[%clk 0:03:00.2]} 11. Qd2
{[%clk 0:02:45.8]} 11... Nb6 {[%clk 0:02:58.7]} 12. a5 {[%clk 0:02:44.2]} 12...
Nc4 {[%clk 0:02:58.1]} 13. Bxc4 {[%clk 0:02:44.9]} 13... Bxc4 {[%clk 0:02:59]}
14. Rfd1 {[%clk 0:02:45.6]} 14... Rc8 {[%clk 0:02:57.8]} 15. f3 {[%clk
0:02:25.5]} 15... Qc7 {[%clk 0:02:53.8]} 16. Nc1 {[%clk 0:02:19.4]} 16... Qc6
{[%clk 0:02:47.4]} 17. Nd3 {[%clk 0:02:04.8]} 17... Rfd8 {[%clk 0:01:48.6]} 18.
Nb4 {[%clk 0:01:51.7]} 18... Qd7 {[%clk 0:01:38]} 19. Bb6 {[%clk 0:01:49.2]}
19... Re8 {[%clk 0:01:36.4]} 20. b3 {[%clk 0:01:04.6]} 20... Be6 {[%clk
0:01:35.2]} 21. Nbd5 {[%clk 0:01:04.7]} 21... Nxd5 {[%clk 0:01:29.6]} 22. Nxd5
{[%clk 0:01:04.8]} 22... Bxd5 {[%clk 0:01:27]} 23. exd5 {[%clk 0:01:01.5]} 23...
f5 {[%clk 0:01:23.3]} 24. c4 {[%clk 0:01:00.1]} 24... Bf6 {[%clk 0:01:19.5]} 25.
Rac1 {[%clk 0:00:55.2]} 25... e4 {[%clk 0:01:19.4]} 26. b4 {[%clk 0:00:28.7]}
26... exf3 {[%clk 0:01:15.3]} 27. gxf3 {[%clk 0:00:28.8]} 27... Qf7 {[%clk
0:00:54.5]} 28. c5 {[%clk 0:00:23.2]} 28... Qh5 {[%clk 0:00:41.2]} 29. Qg2
{[%clk 0:00:21.4]} 29... Bg5 {[%clk 0:00:37]} 30. Rc2 {[%clk 0:00:14.2]} 30...
Bf4 {[%clk 0:00:23]} 31. Rf1 {[%clk 0:00:13.3]} 31... h6 {[%clk 0:00:16.2]} 32.
cxd6 {[%clk 0:00:10.9]} 32... Bxd6 {[%clk 0:00:13.7]} 33. Rxc8 {[%clk
0:00:08.9]} 33... Rxc8 {[%clk 0:00:14.6]} 34. f4 {[%clk 0:00:03.5]} 34... Bxb4
{[%clk 0:00:13]} 35. d6 {[%clk 0:00:02.1]} 35... Qf7 {[%clk 0:00:09.9]} 36. Kh1
{[%clk 0:00:01.6]} 36... Bxd6 {[%clk 0:00:09.3]} 37. Rd1 {[%clk 0:00:01.9]}
37... Bf8 {[%clk 0:00:09.3]} 38. Qd5 {[%clk 0:00:01.9]} 38... Qxd5+ {[%clk
0:00:09.4]} 39. Rxd5 {[%clk 0:00:02.5]} 39... g6 {[%clk 0:00:08.9]} 40. Rd7
{[%clk 0:00:02.2]} 40... Rc4 {[%clk 0:00:08.7]} 41. Kg2 {[%clk 0:00:02]} 41...
Rxf4 {[%clk 0:00:08.3]} 42. Rxb7 {[%clk 0:00:02.6]} 42... Rg4+ {[%clk
0:00:07.4]} 43. Kf3 {[%clk 0:00:02.3]} 43... Rh4 {[%clk 0:00:05.7]} 44. Kg3
{[%clk 0:00:02.6]} 44... Bd6+ {[%clk 0:00:05.2]} 45. Kf3 {[%clk 0:00:01.9]}
45... Rh3+ {[%clk 0:00:05.1]} 46. Kg2 {[%clk 0:00:01.4]} 46... Rxh2+ {[%clk
0:00:06]} 47. Kg1 {[%clk 0:00:02]} 47... Ra2 {[%clk 0:00:04.8]} 48. Ra7 {[%clk
0:00:02.1]} 48... Rxa5 {[%clk 0:00:04.2]} 49. Bxa5 {[%clk 0:00:01.3]} 49... Bc5+
{[%clk 0:00:04.5]} 50. Kg2 {[%clk 0:00:01.8]} 50... Bxa7 {[%clk 0:00:05.4]} 51.
Kg3 {[%clk 0:00:02.2]} 51... Kf7 {[%clk 0:00:05.7]} 0-1